Workbook

Sheet Sheet1
A1: Start here by entering your electricity standng charge. Then tab down this column entering the other rates. Then go to page 2.
A3: Electricity Standing Charge: | B3: 10.96 | C3: In a 31 day month this costs: | D3: =SUM(ESC*31/100) -> 3.3976 | E3: inc. VAT: | F3: =SUM(D3+D3*VATR) -> 3.56748
A4: Gas Standing Charge: | B4: 27.4 | C4: In a 31 day month this costs: | D4: =SUM(GSC*31/100) -> 8.494 | E4: inc. VAT: | F4: =SUM(D4+D4*VATR) -> 8.9187
C5: Total cost of standing charges: | D5: =D4+D3 -> 11.8916 | E5: inc. VAT: | F5: =F3+F4 -> 12.48618
A6: Electricity Rate: | B6: 16.36
A7: Gas Rate: | B7: 4.427
A9: VAT Rate: | B9: 0.05
B12: Notes
B13: 1. The estimates on page 2 are of kWhours, not the difference in two gas readings.
B14: 2. There are likely to be some rounding errors of a few pence. I suspect this might be the power companies.
B16: 3. The pages are protected to make it easy to tab, but there is no password so if you want to change anything just unprotect it.
B18: 4. I've calculated VAT seperately on Gas and Electricity which is how it's done by a few companies though I'm fairly sure that used to be illegal.

Sheet Sheet2
A1: Use the spin controls to adjust your gas and electricity kWh usage for each month (or just enter the amounts in the boxes), in rows 20 and 25 below, then scroll down to see the costs with the year's totals on the right, and a chart of the costs.
B19: Jan | C19: Feb | D19: Mar | E19: Apr | F19: May | G19: Jun | H19: Jul | I19: Aug | J19: Sep | K19: Oct | L19: Nov | M19: Dec | N19: Totals
A20: Gas kWh: | B20: 850 | C20: 850 | D20: 850 | E20: 750 | F20: 700 | G20: 500 | H20: 400 | I20: 450 | J20: 500 | K20: 650 | L20: 750 | M20: 850 | N20: =SUM(B20:M20) -> 8100
A24: Electricity kWh: | B24: 140 | C24: 140 | D24: 140 | E24: 125 | F24: 120 | G24: 120 | H24: 120 | I24: 120 | J24: 125 | K24: 140 | L24: 140 | M24: 140 | N24: =SUM(B24:M24) -> 1570
N28: Year's Costs
A29: Standing Charges inc. VAT: | B29: =(GSC+ESC)*31/100+((GSC+ESC)*31/100)*VATR -> 12.48618 | C29: =(GSC+ESC)*28/100+((GSC+ESC)*28/100)*VATR -> 11.27784 | D29: =(GSC+ESC)*31/100+((GSC+ESC)*31/100)*VATR -> 12.48618 | E29: =(GSC+ESC)*30/100+((GSC+ESC)*30/100)*VATR -> 12.0834 | F29: =(GSC+ESC)*31/100+((GSC+ESC)*31/100)*VATR -> 12.48618 | G29: =(GSC+ESC)*30/100+((GSC+ESC)*30/100)*VATR -> 12.0834 | H29: =(GSC+ESC)*31/100+((GSC+ESC)*31/100)*VATR -> 12.48618 | I29: =(GSC+ESC)*31/100+((GSC+ESC)*31/100)*VATR -> 12.48618 | J29: =(GSC+ESC)*30/100+((GSC+ESC)*30/100)*VATR -> 12.0834 | K29: =(GSC+ESC)*31/100+((GSC+ESC)*31/100)*VATR -> 12.48618 | L29: =(GSC+ESC)*30/100+((GSC+ESC)*30/100)*VATR -> 12.0834 | M29: =(GSC+ESC)*31/100+((GSC+ESC)*31/100)*VATR -> 12.48618 | N29: =SUM(B29:M29) -> 147.0147
A30: Gas inc. SC and VAT: | B30: =B20*GR/100+GSC*0.31+(B20*GR/100+GSC*0.31)*VATR -> 48.429675 | C30: =C20*GR/100+GSC*0.28+(C20*GR/100+GSC*0.28)*VATR -> 47.566575 | D30: =D20*GR/100+GSC*0.31+(D20*GR/100+GSC*0.31)*VATR -> 48.429675 | E30: =E20*GR/100+GSC*0.3+(E20*GR/100+GSC*0.3)*VATR -> 43.493625 | F30: =F20*GR/100+GSC*0.31+(F20*GR/100+GSC*0.31)*VATR -> 41.45715 | G30: =G20*GR/100+GSC*0.3+(G20*GR/100+GSC*0.3)*VATR -> 31.87275 | H30: =H20*GR/100+GSC*0.31+(H20*GR/100+GSC*0.31)*VATR -> 27.5121 | I30: =I20*GR/100+GSC*0.31+(I20*GR/100+GSC*0.31)*VATR -> 29.836275 | J30: =J20*GR/100+GSC*0.3+(J20*GR/100+GSC*0.3)*VATR -> 31.87275 | K30: =K20*GR/100+GSC*0.31+(K20*GR/100+GSC*0.31)*VATR -> 39.132975 | L30: =L20*GR/100+GSC*0.3+(L20*GR/100+GSC*0.3)*VATR -> 43.493625 | M30: =M20*GR/100+GSC*0.31+(M20*GR/100+GSC*0.31)*VATR -> 48.429675 | N30: =SUM(B30:M30) -> 481.52685
A31: Electricity inc. SC and VAT: | B31: =B24*ER/100+ESC*0.31+(B24*ER/100+ESC*0.31)*VATR -> 27.61668 | C31: =C24*ER/100+ESC*0.28+(C24*ER/100+ESC*0.28)*VATR -> 27.27144 | D31: =D24*ER/100+ESC*0.31+(D24*ER/100+ESC*0.31)*VATR -> 27.61668 | E31: =E24*ER/100+ESC*0.3+(E24*ER/100+ESC*0.3)*VATR -> 24.9249 | F31: =F24*ER/100+ESC*0.31+(F24*ER/100+ESC*0.31)*VATR -> 24.18108 | G31: =G24*ER/100+ESC*0.3+(G24*ER/100+ESC*0.3)*VATR -> 24.066 | H31: =H24*ER/100+ESC*0.31+(H24*ER/100+ESC*0.31)*VATR -> 24.18108 | I31: =I24*ER/100+ESC*0.31+(I24*ER/100+ESC*0.31)*VATR -> 24.18108 | J31: =J24*ER/100+ESC*0.3+(J24*ER/100+ESC*0.3)*VATR -> 24.9249 | K31: =K24*ER/100+ESC*0.31+(K24*ER/100+ESC*0.31)*VATR -> 27.61668 | L31: =L24*ER/100+ESC*0.3+(L24*ER/100+ESC*0.3)*VATR -> 27.5016 | M31: =M24*ER/100+ESC*0.31+(M24*ER/100+ESC*0.31)*VATR -> 27.61668 | N31: =SUM(B31:M31) -> 311.6988
A32: Total inc. SC and VAT: | B32: =B20*GR/100+B24*ER/100+(GSC+ESC)*0.31+(B20*GR/100+B24*ER/100+(GSC+ESC)*0.31)*VATR -> 76.046355 | C32: =C20*GR/100+C24*ER/100+(GSC+ESC)*0.28+(C20*GR/100+C24*ER/100+(GSC+ESC)*0.28)*VATR -> 74.838015 | D32: =D20*GR/100+D24*ER/100+(GSC+ESC)*0.31+(D20*GR/100+D24*ER/100+(GSC+ESC)*0.31)*VATR -> 76.046355 | E32: =E20*GR/100+E24*ER/100+(GSC+ESC)*0.3+(E20*GR/100+E24*ER/100+(GSC+ESC)*0.3)*VATR -> 68.418525 | F32: =F20*GR/100+F24*ER/100+(GSC+ESC)*0.31+(F20*GR/100+F24*ER/100+(GSC+ESC)*0.31)*VATR -> 65.63823 | G32: =G20*GR/100+G24*ER/100+(GSC+ESC)*0.3+(G20*GR/100+G24*ER/100+(GSC+ESC)*0.3)*VATR -> 55.93875 | H32: =H20*GR/100+H24*ER/100+(GSC+ESC)*0.31+(H20*GR/100+H24*ER/100+(GSC+ESC)*0.31)*VATR -> 51.69318 | I32: =I20*GR/100+I24*ER/100+(GSC+ESC)*0.31+(I20*GR/100+I24*ER/100+(GSC+ESC)*0.31)*VATR -> 54.017355 | J32: =J20*GR/100+J24*ER/100+(GSC+ESC)*0.3+(J20*GR/100+J24*ER/100+(GSC+ESC)*0.3)*VATR -> 56.79765 | K32: =K20*GR/100+K24*ER/100+(GSC+ESC)*0.31+(K20*GR/100+K24*ER/100+(GSC+ESC)*0.31)*VATR -> 66.749655 | L32: =L20*GR/100+L24*ER/100+(GSC+ESC)*0.3+(L20*GR/100+L24*ER/100+(GSC+ESC)*0.3)*VATR -> 70.995225 | M32: =M20*GR/100+M24*ER/100+(GSC+ESC)*0.31+(M20*GR/100+M24*ER/100+(GSC+ESC)*0.31)*VATR -> 76.046355 | N32: =SUM(B32:M32) -> 793.22565
